bitfinex/quotes_SOLUSD_20250531
["timestamp","ask_amount","ask_price","bid_price","bid_amount"]
[1748697539568,19.94656837,155.46,155.42,22.70558367]
[1748697539995,19.94656837,155.46,155.41,22.52079439]
[1748697539996,42.65215204,155.46,155.41,29.13989714]
[1748697540296,22.70558367,155.45,155.4,29.14049078]
[1748697540498,42.65215204,155.46,155.41,22.70558367]
[1748697540807,19.94656837,155.46,155.42,22.70558367]
[1748697540970,19.94656837,155.46,155.43,22.70558367]
[1748697541668,19.94656837,155.46,155.41,22.52083989]
[1748697541868,19.94656837,155.46,155.42,22.70558367]
[1748697542480,19.94656837,155.46,155.43,22.70558367]
[1748697542791,19.94656837,155.46,155.42,22.70558367]
[1748697543206,19.94656837,155.46,155.41,22.70558367]
[1748697543500,42.65215204,155.46,155.41,22.70558367]
[1748697544089,49.0846938,155.46,155.41,22.70558367]
[1748697545390,49.0846938,155.46,155.4,29.1401781]
[1748697546106,22.70558367,155.44,155.38,6.43568222]
[1748697546296,22.70558367,155.42,155.37,22.70558367]
[1748697546800,22.70558367,155.44,155.39,22.70558367]
[1748697547006,22.70558367,155.45,155.4,22.70558367]
[1748697547202,22.70558367,155.45,155.37,22.5267695]
[1748697547203,75.08480932,155.46,155.41,22.70558367]
[1748697547389,68.65215204,155.46,155.41,22.70558367]
[1748697547797,75.08483745,155.46,155.41,22.70558367]
[1748697548493,22.70558367,155.44,155.38,6.43583472]
[1748697548708,22.70558367,155.43,155.38,22.70558367]
[1748697549111,22.70558367,155.42,155.37,22.70558367]
[1748697549920,22.70558367,155.42,155.36,33.54558367]
[1748697550121,22.70558367,155.42,155.35,22.70558367]
[1748697550122,22.70558367,155.41,155.35,22.70558367]
[1748697550322,6.43500643,155.4,155.35,22.70558367]
[1748697550481,29.1405901,155.4,155.35,22.70558367]
[1748697551026,29.1405901,155.4,155.35,29.14263803]
[1748697551195,6.43500643,155.4,155.35,29.14263803]
[1748697551396,48.70558367,155.42,155.35,6.43705436]
[1748697551613,22.70558367,155.41,155.35,22.70558367]
[1748697551911,22.70558367,155.41,155.34,6.43747664]
[1748697551912,22.70558367,155.4,155.34,22.70558367]
[1748697552613,29.14100422,155.39,155.34,22.70558367]
[1748697552913,29.14100422,155.39,155.33,22.70558367]
[1748697553120,29.14100422,155.39,155.34,22.70558367]
[1748697553623,29.14100422,155.39,155.32,17.0859]
[1748697553795,29.14100422,155.39,155.34,22.70558367]
[1748697554119,29.14100422,155.39,155.34,29.14303076]
[1748697554501,29.14073372,155.4,155.35,22.70558367]
[1748697556417,22.70558367,155.39,155.34,22.70558367]
[1748697556801,22.70558367,155.39,155.34,29.14300959]
[1748697557197,22.70558367,155.39,155.34,22.70558367]
[1748697557597,0.28432314,155.41,155.33,22.70558367]
[1748697557598,22.70558367,155.38,155.33,22.70558367]
[1748697558219,22.70558367,155.38,155.33,29.14348055]
[1748697559928,13.98229769,155.38,155.33,20.42019457]
[1748697561427,14.26662083,155.39,155.33,20.42019457]
[1748697562037,13.98229769,155.37,155.33,6.43789688]
[1748697562231,13.98229769,155.38,155.33,6.43789688]
[1748697562942,13.98229769,155.38,155.33,20.42019457]
[1748697563143,26.0,155.42,155.33,20.42019457]
[1748697563144,1.5616,155.43,155.37,13.98229769]
[1748697563306,146.24963851,155.48,155.42,13.98229769]
[1748697563510,25.47839248,155.51,155.45,13.98229769]
[1748697563745,25.47839248,155.51,155.42,6.6273]
[1748697563746,25.47839248,155.51,155.46,13.98229769]
[1748697563913,11.49609479,155.51,155.46,13.98229769]
[1748697564147,25.47839248,155.51,155.47,6.43210908]
[1748697565606,11.49609479,155.51,155.47,6.43210908]
[1748697566127,34.2432599,155.51,155.47,6.43210908]
[1748697567227,11.49609479,155.51,155.47,6.43210908]
[1748697567623,11.49609479,155.51,155.47,29.17927419]
[1748697567928,26.0,155.52,155.48,22.74716511]
[1748697568241,16.00440217,155.53,155.48,22.74716511]
[1748697569736,16.00440217,155.53,155.49,6.43128175]
[1748697570453,26.0,155.46,155.4,22.74716511]
[1748697570629,22.74716511,155.44,155.39,29.18258566]
[1748697571532,22.74716511,155.45,155.39,29.18258566]
[1748697572055,29.18016284,155.45,155.39,29.18258566]
[1748697572526,22.74716511,155.44,155.39,29.18258566]
[1748697574147,22.74716511,155.45,155.39,29.18258566]
[1748697574952,55.17973943,155.46,155.4,22.74716511]
[1748697575150,22.74716511,155.44,155.4,6.43468498]
[1748697575458,22.74716511,155.45,155.4,6.43468498]
[1748697577263,22.74716511,155.44,155.4,6.43468498]
[1748697578153,22.74716511,155.44,155.38,30.71393273]
[1748697578356,22.74716511,155.42,155.37,29.04996511]
[1748697578558,22.74716511,155.42,155.36,40.10344829]
[1748697578853,22.74716511,155.41,155.36,40.10344829]
[1748697579457,22.74716511,155.42,155.36,40.10344829]
[1748697579844,22.74716511,155.41,155.36,40.10344829]
[1748697580167,22.74716511,155.4,155.35,6.43679214]
[1748697580538,22.74716511,155.4,155.35,29.18395725]
[1748697581756,22.74716511,155.41,155.36,22.74716511]
[1748697582153,22.74716511,155.4,155.35,29.18395725]
[1748697583380,22.74716511,155.41,155.36,22.74716511]
[1748697585399,40.34,155.42,155.37,6.43624895]
[1748697585565,22.74716511,155.41,155.37,6.43624895]
[1748697587785,22.74716511,155.42,155.37,29.18341406]
[1748697588000,40.25811619,155.43,155.38,13.97379305]
[1748697588200,40.25811619,155.43,155.37,20.410042]
[1748697588366,13.97379305,155.41,155.36,20.41030991]
[1748697588568,13.97379305,155.41,155.36,6.43651686]
[1748697590005,20.40845354,155.41,155.36,6.43651686]
[1748697590825,13.97379305,155.4,155.35,20.41070781]
[1748697594329,20.40886916,155.4,155.35,13.97379305]
[1748697594513,13.97379305,155.39,155.34,20.41113094]
[1748697597130,13.97379305,155.39,155.34,6.43733789]
[1748697597639,13.97379305,155.38,155.34,6.43733789]
[1748697598558,13.97379305,155.38,155.33,6.43790639]
[1748697601529,13.97379305,155.38,155.33,20.41169944]
[1748697602715,13.97379305,155.39,155.34,20.41088688]
[1748697604920,20.40933651,155.39,155.34,13.97379305]
[1748697605134,20.40933651,155.39,155.32,17.19805503]
[1748697605135,13.97379305,155.38,155.33,13.97379305]
[1748697605441,13.97379305,155.36,155.31,6.43859499]
[1748697605643,13.97379305,155.36,155.3,20.41292119]
[1748697605858,13.97379305,155.35,155.3,20.41292119]
[1748697606031,13.97379305,155.35,155.3,13.97379305]
[1748697606354,13.97379305,155.35,155.3,20.41289001]
[1748697606535,26.0,155.37,155.3,20.41289001]
[1748697606864,13.97379305,155.35,155.3,20.41289001]
[1748697607643,13.97379305,155.35,155.3,6.43909696]
[1748697609158,13.97379305,155.35,155.3,20.41289001]
[1748697609335,20.41095973,155.35,155.3,20.41289001]
[1748697610834,26.0,155.37,155.3,20.41289001]
[1748697610835,20.41058783,155.36,155.31,13.97379305]
[1748697611027,0.28432314,155.38,155.32,13.97379305]
[1748697611233,13.97379305,155.37,155.32,13.97379305]
[1748697612353,13.97379305,155.36,155.31,13.97379305]
[1748697612759,20.41050116,155.36,155.31,20.4123503]
[1748697613067,20.41050116,155.36,155.3,20.41281444]
[1748697613273,13.97379305,155.35,155.3,20.41281444]
[1748697614065,13.97379305,155.35,155.25,8.0651]
[1748697614066,13.97379305,155.31,155.25,8.0651]
[1748697614268,13.97379305,155.3,155.25,20.41491741]
[1748697614475,13.97379305,155.3,155.24,20.41529808]
[1748697614758,20.41261817,155.31,155.26,13.97379305]
[1748697615066,13.97379305,155.31,155.26,13.97379305]
[1748697615969,39.97379305,155.32,155.26,13.97379305]
[1748697616445,39.97379305,155.32,155.27,13.97379305]
[1748697616853,46.4122554,155.32,155.27,20.41395047]
[1748697617673,46.4122554,155.32,155.26,20.41445492]
[1748697618252,46.4122554,155.32,155.27,13.97379305]
[1748697618651,46.4122554,155.32,155.22,34.75582074]
[1748697618652,13.97379305,155.31,155.25,13.97379305]
[1748697618879,13.97379305,155.28,155.24,6.44153361]
[1748697619092,13.97379305,155.28,155.23,20.415593]
[1748697619855,6.43873543,155.31,155.23,20.415593]
[1748697619856,13.97379305,155.29,155.24,13.97379305]
[1748697620381,13.97379305,155.3,155.24,13.97379305]
[1748697620582,13.97379305,155.3,155.25,13.97379305]
[1748697620961,13.97379305,155.3,155.24,6.44155586]
[1748697621380,13.97379305,155.3,155.25,13.97379305]
[1748697621573,6.43873543,155.31,155.25,13.97379305]
[1748697621889,13.97379305,155.3,155.25,13.97379305]
[1748697622380,6.43956468,155.29,155.25,13.97379305]
[1748697622798,20.41335773,155.29,155.24,20.41534891]
[1748697622961,13.97379305,155.27,155.21,6.1281]
[1748697623303,13.97379305,155.24,155.18,20.41792244]
[1748697623588,13.97379305,155.24,155.18,13.97379305]
[1748697624084,13.97379305,155.23,155.18,13.97379305]
[1748697624394,6.44246875,155.22,155.17,21.29439626]
[1748697624571,6.44246875,155.22,155.18,13.97379305]
[1748697624767,6.44218233,155.23,155.18,13.97379305]
[1748697624988,6.44218233,155.23,155.19,13.97379305]
[1748697625361,26.0,155.26,155.21,13.97379305]
[1748697625565,26.0,155.26,155.17,7.32059518]
[1748697625566,26.0,155.28,155.24,13.97379305]
[1748697625859,20.41377244,155.28,155.18,18.64964886]
[1748697626061,13.97379305,155.27,155.22,13.97379305]
[1748697626278,20.41447712,155.27,155.22,13.97379305]
[1748697627066,20.41447712,155.27,155.18,6.44412939]
[1748697627264,20.41447712,155.27,155.22,13.97379305]
[1748697628384,20.41447712,155.27,155.21,13.97379305]
[1748697628564,20.41447712,155.27,155.22,13.97379305]
[1748697628765,6.44068407,155.27,155.22,13.97379305]
[1748697629380,56.00772522,155.29,155.24,13.97379305]
[1748697629579,56.00772522,155.29,155.18,22.55445288]
[1748697629580,31.27393217,155.29,155.25,13.97379305]
[1748697631894,14.25811619,155.28,155.23,13.97379305]
[1748697632087,13.97379305,155.28,155.23,13.97379305]
[1748697632288,20.41384132,155.28,155.23,13.97379305]
[1748697633999,0.28432314,155.27,155.23,13.97379305]
[1748697634412,32.44080896,155.26,155.21,13.97379305]
[1748697634581,0.28432314,155.25,155.21,13.97379305]
[1748697635516,6.72595595,155.25,155.21,13.97379305]
[1748697636870,6.72595595,155.25,155.2,13.97379305]
[1748697637074,77.16280858,155.25,155.2,13.97379305]
[1748697637878,87.92280858,155.25,155.2,13.97379305]
[1748697638380,0.28432314,155.23,155.18,13.97379305]
[1748697638584,14.25811619,155.23,155.18,13.97379305]
[1748697639675,20.70051155,155.23,155.18,13.97379305]
[1748697640170,20.70051155,155.23,155.17,7.32052655]
[1748697640378,20.70051155,155.23,155.17,21.29435819]
[1748697640870,20.70051155,155.23,155.18,13.97379305]
[1748697641070,6.44172427,155.24,155.19,13.97379305]
[1748697641286,20.41551732,155.24,155.19,13.97379305]
[1748697641487,6.44172427,155.24,155.2,13.97379305]
[1748697642798,205.45399067,155.25,155.2,13.97379305]
[1748697644587,165.09399067,155.25,155.2,13.97379305]
[1748697644908,40.36,155.24,155.2,13.97379305]
[1748697645693,54.33379305,155.24,155.19,13.97379305]
[1748697646086,6.44205372,155.23,155.19,13.97379305]
[1748697647178,46.80176026,155.24,155.2,13.97379305]
[1748697647486,46.80176026,155.24,155.21,13.97379305]
[1748697648501,151.12031742,155.25,155.22,13.97379305]
[1748697649708,144.67893851,155.25,155.22,20.41619749]
[1748697649889,37.71361604,155.29,155.24,13.97379305]
[1748697649890,78.07361604,155.29,155.24,13.97379305]
[1748697650207,31.27393217,155.29,155.27,13.97379305]
[1748697650999,31.27393217,155.29,155.26,13.97379305]
[1748697651593,31.27393217,155.29,155.27,13.97379305]
[1748697654418,31.27393217,155.29,155.26,13.97379305]
[1748697654714,31.27393217,155.29,155.23,13.97379305]
[1748697654715,13.97379305,155.28,155.23,13.97379305]
[1748697654886,57.27393217,155.29,155.24,13.97379305]
[1748697654887,77.68738269,155.29,155.24,13.97379305]
[1748697655094,57.27393217,155.29,155.25,13.97379305]
[1748697655418,57.27393217,155.29,155.26,13.97379305]
[1748697655419,31.27393217,155.29,155.26,13.97379305]
[1748697656404,37.71358988,155.29,155.26,13.97379305]
[1748697656592,37.71358988,155.29,155.2,16.10824742]
[1748697656905,37.71358988,155.29,155.25,13.97379305]
[1748697657111,19.39532684,155.29,155.25,13.97379305]
[1748697657281,25.83491607,155.29,155.24,13.97379305]
[1748697657487,39.80870912,155.29,155.24,13.97379305]
[1748697657687,25.83491607,155.29,155.24,13.97379305]
[1748697660804,14.10987939,155.28,155.17,0.8761012]
[1748697661107,19.39532684,155.29,155.17,0.8761012]
[1748697661108,13.97379305,155.27,155.19,7.6919]
[1748697661311,13.97379305,155.27,155.21,13.97379305]
[1748697661815,13.97379305,155.28,155.22,13.97379305]
[1748697661999,13.97379305,155.27,155.21,13.97379305]
[1748697662718,13.97379305,155.26,155.2,13.97379305]
[1748697662936,6.44122383,155.25,155.18,10.76]
[1748697663218,6.44122383,155.25,155.18,24.73379305]
[1748697663219,54.31379305,155.24,155.18,24.73379305]
[1748697663392,13.97379305,155.23,155.17,21.29415915]
[1748697664620,20.41619529,155.23,155.17,14.84989425]
[1748697664836,13.97379305,155.22,155.17,0.8761012]
[1748697665032,13.97379305,155.24,155.18,13.97379305]
[1748697665195,40.34,155.25,155.2,13.97379305]
[1748697665820,13.97379305,155.25,155.2,13.97379305]
[1748697666718,20.41522034,155.25,155.2,13.97379305]
[1748697667096,13.97379305,155.25,155.2,20.416828]
[1748697668320,20.41507111,155.25,155.2,13.97379305]
[1748697668634,13.97379305,155.22,155.17,0.8761012]
[1748697668807,13.97379305,155.22,155.17,14.84989425]
[1748697669008,20.41584677,155.23,155.17,14.84989425]
[1748697669932,13.97379305,155.23,155.18,13.97379305]
[1748697670431,20.41592316,155.23,155.18,13.97379305]
[1748697670799,20.41592316,155.23,155.17,7.32055619]
[1748697670800,32.44165667,155.24,155.17,21.29434924]
[1748697671215,13.97379305,155.23,155.17,21.29434924]
[1748697671406,13.97379305,155.23,155.17,7.32055619]
[1748697671603,13.97379305,155.23,155.17,21.29434924]
[1748697671810,20.41602059,155.23,155.17,21.29434924]
[1748697672238,13.97379305,155.22,155.17,14.84989425]
[1748697672449,13.97379305,155.22,155.17,0.8761012]
[1748697672604,13.97379305,155.21,155.17,0.8761012]
[1748697672941,13.97379305,155.22,155.17,14.84989425]
[1748697673835,13.97379305,155.22,155.17,21.29434388]
[1748697674004,13.97379305,155.23,155.18,13.97379305]
[1748697674427,18.933972,155.26,155.17,7.32055083]
[1748697674428,13.97379305,155.25,155.2,13.97379305]
[1748697674803,13.97379305,155.25,155.19,13.97379305]
[1748697675454,13.97379305,155.24,155.18,13.97379305]
[1748697676618,13.97379305,155.24,155.19,6.44371415]
[1748697678024,20.41566196,155.24,155.18,13.97379305]
[1748697678226,13.97379305,155.22,155.17,0.8761012]
[1748697678425,13.97379305,155.21,155.17,0.8761012]
[1748697678748,13.97379305,155.22,155.17,7.32034916]
[1748697679244,13.97379305,155.2,155.17,0.8761012]
[1748697680753,13.97379305,155.2,155.17,7.32060573]
[1748697681550,13.97379305,155.2,155.17,0.8761012]
[1748697682050,13.97379305,155.21,155.17,0.8761012]
[1748697682352,13.97379305,155.2,155.17,0.8761012]
[1748697682861,13.97379305,155.27,155.19,13.97379305]
[1748697683027,13.97379305,155.27,155.21,13.97379305]
[1748697683231,22.50111258,155.31,155.24,13.97379305]
[1748697683559,22.50111258,155.31,155.26,13.97379305]
[1748697683560,25.73490563,155.31,155.26,13.97379305]
[1748697684168,25.73490563,155.31,155.25,13.97379305]
[1748697684320,25.73490563,155.31,155.26,13.97379305]
[1748697684653,25.73490563,155.31,155.27,6.44039415]
[1748697684840,11.76111258,155.31,155.27,6.44039415]
[1748697685153,25.73490563,155.31,155.27,6.44039415]
[1748697686551,25.73490563,155.31,155.27,20.4141872]
[1748697686552,11.76111258,155.31,155.27,20.4141872]
[1748697688073,11.76111258,155.31,155.28,13.97379305]
[1748697688624,13.97379305,155.34,155.29,6.43956468]
[1748697689727,13.97379305,155.33,155.29,6.43956468]
[1748697691545,13.97379305,155.33,155.28,20.41363482]
[1748697691733,13.97379305,155.32,155.27,6.44032032]
[1748697692447,13.97379305,155.32,155.27,20.41411337]
[1748697694255,20.41212369,155.32,155.26,31.15459157]
[1748697694455,13.97379305,155.31,155.26,17.18079852]
[1748697694938,13.97379305,155.31,155.26,31.15459157]
[1748697696056,13.97379305,155.31,155.26,17.18079852]
[1748697696459,13.97379305,155.31,155.26,31.15459157]
[1748697696959,13.97379305,155.33,155.27,13.97379305]
[1748697697159,13.97379305,155.33,155.26,17.18079852]
[1748697697160,13.97379305,155.33,155.28,13.97379305]
[1748697697958,13.97379305,155.33,155.27,13.97379305]
[1748697698135,13.97379305,155.32,155.27,13.97379305]
[1748697698649,13.97379305,155.32,155.26,31.15459157]
[1748697698845,13.97379305,155.31,155.26,31.15459157]
[1748697699060,13.97379305,155.31,155.26,24.71379305]
[1748697699261,13.97379305,155.31,155.26,10.74]
[1748697700039,20.41279472,155.31,155.26,10.74]
[1748697700961,20.41279472,155.31,155.26,17.18080745]
[1748697701763,39.97379305,155.32,155.26,31.1546005]
[1748697702842,32.43757521,155.34,155.28,13.97379305]
[1748697703043,46.41136826,155.34,155.28,13.97379305]
[1748697703254,13.97379305,155.31,155.26,17.18080745]
[1748697703765,13.97379305,155.31,155.26,31.1546005]
[1748697703963,32.43757521,155.34,155.26,31.1546005]
[1748697704137,13.97379305,155.32,155.26,31.1546005]
[1748697704789,20.41217205,155.32,155.26,31.1546005]
[1748697705377,13.97379305,155.32,155.26,31.1546005]
[1748697706083,13.97379305,155.31,155.26,31.1546005]
[1748697706364,20.41265974,155.31,155.26,17.18080745]
[1748697706665,13.97379305,155.3,155.26,17.180797]
[1748697707586,20.41265974,155.31,155.26,17.180797]
[1748697708289,6.43790639,155.33,155.26,17.180797]
[1748697708590,13.97379305,155.31,155.26,17.180797]
[1748697708775,13.97379305,155.31,155.26,10.74]
[1748697708971,13.97379305,155.28,155.22,17.18241947]
[1748697709172,13.97379305,155.24,155.19,13.97379305]
[1748697709370,13.97379305,155.24,155.18,31.28839305]
[1748697709788,2.90186782,155.24,155.18,31.28839305]
[1748697709962,13.97379305,155.23,155.18,10.74]
[1748697710476,20.41615507,155.23,155.18,10.74]
[1748697710775,13.97379305,155.22,155.18,10.74]
[1748697711191,13.97379305,155.21,155.17,0.8761012]
[1748697711372,13.97379305,155.19,155.17,0.8761012]
[1748697715292,13.97379305,155.21,155.17,7.32057701]
[1748697715497,13.97379305,155.22,155.17,7.32057701]
[1748697715999,13.97379305,155.22,155.17,21.29437006]
[1748697716573,13.97379305,155.22,155.17,7.32057701]
[1748697717906,13.97379305,155.21,155.17,7.32057701]
[1748697718077,13.97379305,155.21,155.17,0.8761012]
[1748697718391,13.97379305,155.2,155.17,0.8761012]
[1748697718897,6.44214498,155.23,155.17,0.8761012]
[1748697718898,13.97379305,155.18,155.17,0.8761012]
[1748697719070,13.97379305,155.19,155.17,0.8761012]
[1748697719774,26.28432314,155.24,155.17,0.8761012]
[1748697719981,13.97379305,155.2,155.17,0.8761012]
[1748697720365,13.97379305,155.19,155.17,0.8761012]
[1748697720624,15.79301619,155.18,155.17,0.8761012]
[1748697720898,41.79301619,155.18,155.17,0.8761012]
[1748697721415,60.44266505,155.18,155.17,0.8761012]
[1748697721573,26.0,155.15,155.06,31.32529305]
[1748697721774,13.97379305,155.1,155.06,10.74]
[1748697721983,32.44579089,155.14,155.03,20.42415749]
[1748697721984,13.97379305,155.08,155.03,20.42415749]
[1748697722220,13.97379305,155.08,155.02,17.3515]
[1748697722504,13.97379305,155.03,154.99,6.45202916]
[1748697722707,13.97379305,155.03,154.97,6.6115]
[1748697722708,13.97379305,155.02,154.97,20.58529305]
[1748697722926,26.0,155.05,154.97,6.6115]
[1748697723235,13.97379305,155.02,154.97,20.58529305]
[1748697723389,26.0,155.05,154.97,6.6115]
[1748697723704,0.28432314,155.07,155.02,13.97379305]
[1748697723705,13.97379305,155.07,155.02,13.97379305]
[1748697723906,26.0,155.08,155.02,22.8724494]
[1748697724116,12.2749,155.13,155.03,18.64964886]
[1748697724291,22.8724494,155.11,155.06,22.8724494]
[1748697724616,22.8724494,155.1,155.05,22.8724494]
[1748697725000,22.8724494,155.12,155.06,22.8724494]
[1748697725202,22.8724494,155.12,155.07,22.8724494]
[1748697725515,22.8724494,155.11,155.06,22.8724494]
[1748697725719,22.8724494,155.09,155.05,6.4495324]
[1748697726218,22.8724494,155.1,155.05,6.4495324]
[1748697726590,22.8724494,155.09,155.04,22.8724494]
[1748697726795,22.8724494,155.08,155.03,22.8724494]
[1748697727097,22.8724494,155.09,155.03,22.8724494]
[1748697727487,22.8724494,155.08,155.03,22.8724494]
[1748697727797,22.8724494,155.08,155.02,22.8724494]
[1748697728588,22.8724494,155.08,155.03,22.8724494]
[1748697728787,16.11447724,155.14,155.01,22.57918843]
[1748697728788,40.34,155.13,155.05,22.8724494]
[1748697729000,22.8724494,155.11,155.06,22.8724494]
[1748697729380,22.8724494,155.12,155.06,22.8724494]
[1748697729813,22.8724494,155.12,155.07,6.44870058]
[1748697730410,22.8724494,155.11,155.07,6.44870058]
[1748697730994,22.8724494,155.1,155.05,22.8724494]
[1748697731205,22.8724494,155.08,155.04,87.8]
[1748697731409,22.8724494,155.08,155.04,6.4499484]
[1748697731712,22.8724494,155.05,155.0,22.8724494]
[1748697731912,22.8724494,155.04,154.99,6.45199324]
[1748697732117,22.8724494,155.03,154.98,6.45243144]
[1748697732290,22.8724494,155.02,154.96,29.32536569]
[1748697732495,22.8724494,155.02,154.97,22.8724494]
[1748697733296,29.32330811,155.02,154.95,6.45369474]
[1748697733502,22.8724494,155.01,154.95,29.32614414]
[1748697733711,22.8724494,155.0,154.95,29.32614414]
[1748697734016,6.45085871,155.02,154.94,6.50449981]
[1748697734017,22.8724494,154.98,154.94,6.50449981]
[1748697734184,22.8724494,154.98,154.94,0.05050534]
[1748697734391,22.8724494,154.95,154.87,1.5001]
[1748697734610,22.8724494,154.93,154.88,29.32906097]
[1748697735393,22.8724494,154.94,154.89,22.8724494]
[1748697735623,40.34,154.96,154.91,22.8724494]
[1748697736111,22.8724494,154.97,154.92,22.8724494]
[1748697736503,22.8724494,154.99,154.94,22.8724494]
[1748697736702,22.8724494,155.0,154.95,22.8724494]
[1748697736887,22.8724494,155.01,154.95,22.8724494]
[1748697737507,22.8724494,155.0,154.94,22.8724494]
[1748697737820,10.74,155.03,154.94,6.45411126]
[1748697737821,22.8724494,154.98,154.94,6.45411126]
[1748697738120,22.8724494,154.95,154.9,6.45573921]
[1748697738317,22.8724494,154.93,154.9,6.45573921]
[1748697738630,22.8724494,154.92,154.86,23.7485506]
[1748697738994,22.8724494,154.91,154.86,23.7485506]
[1748697739315,22.8724494,154.88,154.86,0.8761012]
[1748697739822,22.8724494,154.89,154.86,7.33350213]
[1748697740125,22.8724494,154.9,154.86,7.33350213]
[1748697741098,22.8724494,154.92,154.86,30.20595153]
[1748697741299,22.8724494,154.91,154.86,30.20595153]
[1748697742018,22.8724494,154.91,154.86,7.33350213]
[1748697742325,22.8724494,154.9,154.86,7.33350213]
[1748697742497,22.8724494,154.89,154.86,0.8761012]
[1748697742821,22.8724494,154.87,154.86,0.8761012]
[1748697743517,22.8724494,154.88,154.86,0.8761012]
[1748697743901,22.8724494,154.88,154.86,7.33333009]
[1748697744104,0.14216157,154.93,154.86,30.20577949]
[1748697744105,6.45457162,154.93,154.86,30.20577949]
[1748697744309,22.8724494,154.91,154.86,7.33333009]
[1748697745128,37.54011916,154.94,154.87,22.8724494]
[1748697745429,22.8724494,154.93,154.87,22.8724494]
[1748697745804,22.8724494,154.93,154.88,6.45661157]
[1748697746332,22.8724494,154.91,154.86,0.8761012]
[1748697746709,22.8724494,154.9,154.86,0.8761012]
[1748697747015,26.0,154.92,154.8,6.45992856]
[1748697747016,48.8724494,154.87,154.8,6.45992856]
[1748697747221,22.8724494,154.84,154.8,6.45992856]
[1748697747523,22.8724494,154.84,154.79,22.8724494]
[1748697747725,22.8724494,154.84,154.79,29.33271605]
[1748697747927,22.8724494,154.83,154.78,22.8724494]
[1748697748628,22.8724494,154.84,154.79,22.8724494]
[1748697749198,26.0,154.88,154.81,22.8724494]
[1748697749405,22.8724494,154.87,154.81,22.8724494]
[1748697749709,22.8724494,154.86,154.81,22.8724494]
[1748697749919,22.8724494,154.86,154.82,6.4591138]
[1748697750428,22.8724494,154.85,154.8,22.8724494]
[1748697751630,22.8724494,154.86,154.8,22.8724494]
[1748697751830,72.89693186,154.88,154.82,6.4591138]
[1748697751831,22.8724494,154.87,154.82,6.4591138]
[1748697752419,22.8724494,154.86,154.82,6.4591138]
[1748697753724,6.45670588,154.88,154.8,29.33200679]
[1748697753725,22.8724494,154.85,154.8,29.33200679]
[1748697753924,22.8724494,154.84,154.8,6.45955739]
[1748697754241,22.8724494,154.85,154.8,6.45955739]
[1748697755410,32.4571346,154.87,154.8,6.45955739]
[1748697755619,22.8724494,154.85,154.8,6.45955739]
[1748697756348,22.8724494,154.86,154.81,22.8724494]
[1748697756516,22.8724494,154.88,154.82,22.8724494]
[1748697757025,22.8724494,154.87,154.82,22.8724494]
[1748697757628,6.45671731,154.88,154.8,6.45955739]
[1748697757629,22.8724494,154.83,154.8,6.45955739]
[1748697757830,22.8724494,154.82,154.77,29.33364989]
[1748697758554,22.8724494,154.78,154.74,2.53848853]
[1748697759056,22.8724494,154.76,154.74,2.53848853]
[1748697759420,22.8724494,154.77,154.74,2.53848853]
[1748697760060,26.0,154.8,154.74,9.00082175]
[1748697760351,22.8724494,154.78,154.74,2.53848853]
[1748697760522,73.0400551,154.8,154.75,22.8724494]
[1748697760523,22.8724494,154.8,154.75,22.8724494]
[1748697761125,36.82,154.82,154.75,22.8724494]
[1748697761321,6.45835955,154.84,154.76,22.8724494]
[1748697761322,22.8724494,154.81,154.76,22.8724494]
[1748697761523,22.8724494,154.84,154.79,22.8724494]
[1748697761762,1.5923,154.85,154.8,22.8724494]
[1748697761763,22.8724494,154.85,154.8,22.8724494]
[1748697762046,6.2911,154.89,154.77,26.0]
[1748697762047,22.8724494,154.87,154.82,22.8724494]
[1748697762344,22.8724494,154.87,154.83,6.45869663]
[1748697762722,22.8724494,154.88,154.83,29.33114603]
[1748697762923,10.82,154.9,154.83,29.33114603]
[1748697763247,22.8724494,154.88,154.83,29.33114603]
[1748697764229,33.6924494,154.9,154.85,22.8724494]
[1748697765672,22.8724494,154.89,154.84,22.8724494]
[1748697766145,22.8724494,154.89,154.84,20.8724494]
[1748697766452,22.8724494,154.89,154.85,6.45786244]
[1748697766747,22.8724494,154.9,154.85,29.33031184]
[1748697767168,20.80704665,154.91,154.85,29.33031184]
[1748697767377,22.8724494,154.89,154.85,6.45786244]
[1748697768046,22.8724494,154.88,154.85,6.45786244]
[1748697768543,22.8724494,154.88,154.83,22.8724494]
[1748697768544,22.8724494,154.88,154.84,6.45827951]
[1748697770748,20.80704665,154.91,154.84,29.33072891]
[1748697770749,22.8724494,154.89,154.84,29.33072891]
[1748697772555,22.8724494,154.88,154.83,29.33099469]
[1748697772741,22.8724494,154.88,154.83,6.45854529]
[1748697773451,22.8724494,154.88,154.83,29.33099469]
[1748697775064,22.8724494,154.88,154.83,6.45854529]
[1748697776971,22.8724494,154.88,154.83,45.47773627]
[1748697777161,22.8724494,154.89,154.84,22.8724494]
[1748697777362,84.11949605,154.91,154.85,22.8724494]
[1748697777660,63.3124494,154.91,154.85,22.8724494]
[1748697777872,22.8724494,154.89,154.83,22.60528687]
[1748697778073,22.8724494,154.89,154.84,22.8724494]
[1748697778783,22.8724494,154.9,154.86,6.45744543]